Cogmind - Beta 13 @@@ ROGUE MODE // 2024.03.04 @ 05:02:29 Player: J1ANG-5HI Result: Destroyed by 4V-ZWV(R) with Subdweller Machine Gun Performance ------------- Evolutions (0) 0 Regions Visited (2) 400 Robots Destroyed (11) 55 Value Destroyed (276) 276 Prototype IDs (5) 100 Alien Tech Used (0) 0 Bonus (0) 0 TOTAL SCORE: 831 Bonus ------- None Cogmind --------- Core Integrity 0/250 Matter 228/300 Energy 125/125 System Corruption 0% Temperature Cool (0) Movement Treading (160) Location -10/Subcaves Parts ------- > --- POWER (1) -------- Light Ion Engine > --- PROPULSION (2) --- Light Treads Light Treads > --- UTILITY (2) ------ Medium Storage Unit Targeting Computer > --- WEAPON (2) ------- Assault Rifle Assault Rifle > --- INVENTORY (10) --- Light Ion Engine Aluminum Leg Aluminum Leg Compact Wheel Improved Heat Sink Medium Matter Pod (41) Transport Network Coupler Peak State ------------ > --- POWER ------------ Light Ion Engine > --- PROPULSION ------- Aluminum Leg Aluminum Leg > --- UTILITY ---------- Small Storage Unit Terrain Scanner > --- WEAPON ----------- Small Laser Assault Rifle > --- INVENTORY -------- Light Ion Engine Light Treads Light Treads Wheel Compact Wheel Improved Heat Sink Small Laser Datajack [Rating: 8] Favorites ----------- Power Light Ion Engine Engine Light Ion Engine Propulsion Aluminum Leg Treads Light Treads Leg Aluminum Leg Utility Terrain Scanner Device Terrain Scanner Storage Medium Storage Unit Processor Targeting Computer Weapon Assault Rifle Energy Gun Small Laser Ballistic Gun Assault Rifle Build | -11 -10 -10 ------- Run | Yrd Mat Sub Slots Evolved . | . . . Power . | . . . Propulsion . | . . . Utility . | . . . Weapon . | . . . Parts Attached 10 | . 5 5 Power 1 | . 1 . Engine 1 | . 1 . Core . | . . . Reactor . | . . . Propulsion 2 | . . 2 Treads 2 | . . 2 Leg . | . . . Wheel . | . . . Hover . | . . . Flight . | . . . Utility 3 | . 2 1 Device 1 | . 1 . Storage 1 | . 1 . Processor 1 | . . 1 Hackware . | . . . Protection . | . . . Artifact . | . . . Weapon 4 | . 2 2 Energy Gun . | . . . Energy Cannon . | . . . Ballistic Gun 4 | . 2 2 Ballistic Cannon . | . . . Launcher . | . . . Special Weapon . | . . . Impact Weapon . | . . . Slashing Weapon . | . . . Piercing Weapon . | . . . Special Melee Weapon . | . . . Unidentified Prototypes . | . . . Parts Lost 3 | . . 3 Power . | . . . Propulsion . | . . . Utility 1 | . . 1 Weapon 2 | . . 2 Highest Loss Streak 2 | . . 2 To Critical Strikes . | . . . Average Slot Usage (%) 96 | . 96 100 Engine 13 | . 13 14 Leg 27 | . 28 25 Device 9 | . 10 1 Storage 14 | . 14 14 Processor 1 | . . 12 Energy Gun 5 | . 6 . Ballistic Gun 22 | . 21 28 Naked Turns . | . . . Heaviest Build 18 | 11 18 18 Greatest Support 20 | 20 20 20 Greatest Overweight (x) . | . . . Average Overweight (x) . | . . . Largest Inventory Capacity 10 | . 10 10 Average Capacity 9 | . 9 10 Most Carried 10 | . 10 10 Average Carried 8 | . 8 8 Final Capacity 10 | 8 10 10 Final Carried 10 | 6 10 7 Class Distribution -------------------- 100% | Mutant Dominant Class ---------------- Mutant | -10/Materials Mutant | -10/Subcaves Resources | -11 -10 -10 ----------- Run | Yrd Mat Sub Matter Collected 473 | 200 169 104 Remotely . | . . . Salvage Created 412 | . 322 90 Parts 24 | . 16 8 Haulers Intercepted 2 | . 2 . Recyclers Shooed . | . . . Parts Field Recycled . | . . . Retrieved Matter . | . . . Parts Self-Destructed 12 | . . 12 Prevented . | . . . Kills | -11 -10 -10 ------- Run | Yrd Mat Sub Combat Hostiles Destroyed 9 | . 7 2 Guns 9 | . 7 2 Classes Destroyed 4 | . 3 1 Hauler 2 | . 2 . Swarmer 3 | . 3 . Grunt 4 | . 4 . Subdweller 2 | . . 2 Best Kill Streak 3 | . 3 1 Combat Bots Only 3 | . 3 1 Max Kills in Single Turn 1 | . 1 1 Gunslinging . | . . . Exploded . | . . . Melee . | . . . Uniques/NPCs Destroyed . | . . . Combat | -11 -10 -10 -------- Run | Yrd Mat Sub Hostile Shots Fired 75 | . 35 40 Missed 14 | . 3 11 Damage Taken 1020 | . 373 647 Core 256 | . 116 140 Absorbed by Shields . | . . . Regen/Repaired (Parts) 35 | . 35 . Core Remaining (%) 100 | 100 . . Volleys Fired 49 | . 28 21 Largest 2 | . 2 2 Hottest 60 | . 60 40 Shots Fired 98 | . 56 42 Gun 98 | . 56 42 Cannon . | . . . Launcher . | . . . Special . | . . . Kinetic 73 | . 31 42 Thermal 25 | . 25 . Explosive . | . . . Electromagnetic . | . . . Robot Hit Streak 18 | . 12 18 Robot Miss Streak 3 | . 3 3 Penetration Max . | . . . Secondary Targets . | . . . Shots Hit Robots 73 | . 38 35 Core Hits 24 | . 16 8 Critical Kills . | . . . Critical Parts Destroyed . | . . . Critical Strikes . | . . . Melee Attacks . | . . . Impact . | . . . Slashing . | . . . Piercing . | . . . Sneak Attacks . | . . . Combat Hostiles . | . . . Follow-up Attacks . | . . . Damage Inflicted 896 | . 473 423 Guns 896 | . 473 423 Cannons . | . . . Explosions . | . . . Melee . | . . . Ramming . | . . . Kinetic 693 | . 270 423 Thermal 203 | . 203 . Explosive . | . . . Electromagnetic . | . . . Impact . | . . . Slashing . | . . . Piercing . | . . . Highest Corruption . | . . . Average Corruption . | . . . Corruption Purged . | . . . Corruption Blocked . | . . . Overload Shots . | . . . Overflow Damage . | . . . Projectiles . | . . . Explosions . | . . . Melee . | . . . Knockbacks . | . . . Impact . | . . . Kinetic . | . . . Secondary . | . . . Self-Inflicted Damage . | . . . Shots . | . . . Rammed . | . . . Targets Rammed . | . . . Kicked . | . . . Crushed . | . . . Highest Temperature 123 | . 123 . Average Temperature 61 | . 61 . Received Heat Transfer 228 | . 174 54 Siege Activations . | . . . Robots Corrupted . | . . . Combat Hostiles . | . . . Parts Fried . | . . . Impact Corruptions . | . . . Robots Melted . | . . . Combat Hostiles . | . . . Parts Melted . | . . . Heat Transferred 450 | . 450 . Parts Sabotaged . | . . . Parts Stolen . | . . . Parts Stripped . | . . . Power Chain Reactions . | . . . Alert | -11 -10 -10 ------- Run | Yrd Mat Sub Peak Influence 173 | . 173 . Initial . | . . . Average 35 | . 35 . Maximum Alert Level . | . . . Low Security (%) 100 | . 100 . Level 1 . | . . . Level 2 . | . . . Level 3 . | . . . Level 4 . | . . . Level 5 . | . . . High Security . | . . . Max Security . | . . . Squads Dispatched . | . . . Investigation . | . . . Extermination . | . . . Reinforcement . | . . . Assault . | . . . Garrison . | . . . Intercept . | . . . Searches Triggered . | . . . Construction Impeded . | . . . Haulers Reinforced . | . . . Active Scanning Responses . | . . . Cargo Convoy Interrupts . | . . . Stealth | -11 -10 -10 --------- Run | Yrd Mat Sub Distress Signals 1 | . 1 . Communications Jammed . | . . . Distress Signals . | . . . Times Spotted 14 | . 9 5 Peak Tracking Total 3 | . 3 3 Tactical Retreats . | . . . Traps | -11 -10 -10 ------- Run | Yrd Mat Sub Traps Triggered . | . . . Indirectly . | . . . Trap Hack Attempts . | . . . Triggered . | . . . Disarmed . | . . . Reprogrammed . | . . . Reused . | . . . Traps Extracted . | . . . Installed . | . . . Triggered . | . . . Machines | -11 -10 -10 ---------- Run | Yrd Mat Sub Machines Disabled . | . . . Max in Single Turn . | . . . Machines Repaired . | . . . Machines Dismantled . | . . . Machines Sabotaged . | . . . Overloaded Fab Kills . | . . . Hacking | -11 -10 -10 --------- Run | Yrd Mat Sub Machines Accessed 11 | . 11 . Terminals 8 | . 8 . Fabricators . | . . . Repair Stations 1 | . 1 . Recycling Units 2 | . 2 . Scanalyzers . | . . . Garrison Access . | . . . Total Hacks 50 | . 50 . Successful 26 | . 26 . Failed 24 | . 24 . Catastrophic 2 | . 2 . Database Lockouts . | . . . Manual 28 | . 28 . Terminals 39 | . 39 . Fabricators . | . . . Repair Stations 5 | . 5 . Recycling Units 6 | . 6 . Scanalyzers . | . . . Garrison Access . | . . . Terminal Hacks 15 | . 15 . Robot Analysis 4 | . 4 . Prototype ID Bank 5 | . 5 . Locate Traps 2 | . 2 . Dispatch Records 1 | . 1 . Transport Status 1 | . 1 . Hauler Manifests 1 | . 1 . Zone Layout 1 | . 1 . Fabricator Hacks . | . . . Repair Station Hacks 4 | . 4 . Scan Component 3 | . 3 . Repair 1 | . 1 . Recycling Unit Hacks . | . . . Scanalyzer . | . . . Garrison Access Hacks . | . . . Unauthorized Hacks 7 | . 7 . Terminals 3 | . 3 . Botnet 3 | . 3 . Fabricators . | . . . Repair Stations . | . . . Recycling Units 4 | . 4 . Reject 2 | . 2 . Mask 2 | . 2 . Scanalyzers . | . . . Garrison Access . | . . . Data Cores Recovered . | . . . Used . | . . . Hacking Detections 11 | . 11 . Full Trace Events 1 | . 1 . Feedback Events . | . . . Feedback Blocked . | . . . Robot Schematics Acquired . | . . . Robots Built . | . . . Authchips . | . . . Time . | . . . Total Robot Build Rating . | . . . Part Schematics Acquired . | . . . Parts Built . | . . . Authchips . | . . . Time . | . . . Total Part Build Rating . | . . . Parts Repaired 1 | . 1 . Time 26 | . 26 . Parts Recycled . | . . . Recycled Matter . | . . . Retrieved Matter . | . . . Retrieved Components . | . . . Parts Scanalyzed . | . . . Part Schematics Acquired . | . . . Parts Damaged . | . . . Bothacking | -11 -10 -10 ------------ Run | Yrd Mat Sub Used RIF Installer . | . . . Robots Hacked . | . . . Non-combat . | . . . Combat . | . . . Robot Hacks Applied . | . . . Relay Couplers Released . | . . . Fabnet Peak Effective % . | . . . Robots Rewired . | . . . Allies Hacked . | . . . Hacks Repelled . | . . . Allies | -11 -10 -10 -------- Run | Yrd Mat Sub Total Allies . | . . . Largest Group . | . . . Highest-Rated Group . | . . . Highest-Rated Ally . | . . . Total Orders . | . . . Ally Attacks . | . . . Total Damage . | . . . Kills . | . . . Allies Corrupted . | . . . Allies Melted . | . . . Intel | -11 -10 -10 ------- Run | Yrd Mat Sub Robot Analysis Total 4 | . 4 . Derelict Logs Recovered . | . . . Drone Launches . | . . . Drone Recoveries . | . . . Exploration | -11 -10 -10 ------------- Run | Yrd Mat Sub Turns Passed 1487 | . 1304 183 Spaces Moved 706 | 1 612 93 Core . | . . . Treads . | . . . Legs 706 | 1 612 93 Wheels . | . . . Hover . | . . . Flight . | . . . Fastest Speed 120 | 120 120 120 Average Speed 120 | 120 120 120 Slowest Speed 120 | 120 120 120 Overloaded Moves . | . . . Propulsion Burnouts . | . . . Robots Hopped . | . . . Cave-ins Triggered . | . . . Exploration Rate (%) 32 | 2 86 8 Regions Visited 2 Branch Regions 1 Pre-discovered Areas . | . . . Known Exits Taken . | . . . Unknown Exits Taken 2 | 1 1 . Scrap Searched 1 | . . 1 Spaces Dug . | . . . Terrain Destroyed . | . . . Melee . | . . . Projectile . | . . . AOE . | . . . Terrain Rammed . | . . . Walls Destroyed . | . . . Machines Disabled . | . . . Actions | -11 -10 -10 --------- Run | Yrd Mat Sub Total 1251 | . 1128 123 Wait 470 | . 466 4 Move 704 | . 611 93 Hop . | . . . Pick Up 10 | . 10 . Fast Attach 3 | . 3 . Attach 4 | . 1 3 Detach . | . . . Swap 3 | . 1 2 Drop 8 | . 8 . Fire 49 | . 28 21 Melee . | . . . Ram . | . . . Kick . | . . . Crush . | . . . Escape Stasis . | . . . Rewire . | . . . Trap . | . . . Miscellaneous . | . . . Route ------- -11/Scrapyard -10/Materials (discovered 6 exits: [*Mat x3] / [*Min x2] / [*Sub]) -10/Subcaves History --------- Turn | Location | Event 1 | -11/Scrapyard | Discovered new exit (range 0) 1 | -11/Scrapyard | Entered Materials 320 | -10/Materials | Build established: Mutant 340 | -10/Materials | Discovered new exit (range 13) 516 | -10/Materials | Discovered new exit (range 9) 535 | -10/Materials | Discovered new exit (range 12) 564 | -10/Materials | Discovered new exit (range 16) 645 | -10/Materials | Repaired Lgt. Ion Engine 685 | -10/Materials | Discovered new exit (range 9) 1297 | -10/Materials | Discovered new exit (range 5) 1305 | -10/Materials | Entered Subcaves 1342 | -10/Subcaves | Core integrity fell below 50% 1473 | -10/Subcaves | Core integrity fell below 20% 1488 | -10/Subcaves | Destroyed by 4V-ZWV(R) with Subdweller Machine Gun Last Messages --------------- 01231_ T-07 Excavator is excavating. 01237_ U-05 Engineer lays Concrete. 01250_ U-05 Engineer builds a Wall. 01286_ T-07 Excavator is excavating. 01291_ U-05 Engineer lays Concrete. 01292_ U-05 Engineer builds a Wall. 01297_ EXIT=FOUND LOCATION=UNKNOWN AMBIENT_HEAT=-10 GOAL=ESCAPE 01310_ Searching scrap... 01310_ Found Flamer. 01310_ Found 14 Matter. 01311_ Acquired 14 matter. 01327_ Terrain Scanner destroyed. 01341_ 4T-UL3(R) destroyed. 01350_ Acquired 47 matter. 01448_ KL-9C2(R) destroyed. 01451_ Acquired 43 matter. 01466_ Assault Rifle destroyed. Map ----- +----------------------------------------------------+ | ?????????????????????????????????????????????????? | | ?????????????????????????????????????????????????? | | ?????????????????????????????????????????????????? | | ?????????????????????????????????????????????????? | | ??????????????????????????????????#??????????????? | | ?????????????????????????????????????????????????? | | ?????????????????????????????????????????####???#? | | ????????????????????????????? ?????????## #????? | | ????????????????????????????# ?? ???#### #????? | | ????????????????????????????# ??????# #????? | | ????????????????????????????# ???????# |##???? | | ????????????????????????????# #?###?## ##??? | | ???????????????????????????# ## ### #### | | ????????????????????????????# ### | | ????????????? ????###???????# | | ????????????? ???# ???????# #### | | ?????????????? ??? ##?????## ##### #??## | | ???????????#### ?? ???????# ????# #????## | | ???????????# # ?? ???????# #?##### ##?????# | | ???????????# ## ??###### #?# ####?## | | ???????????# # ?## # # ### ### | | ???????????# ?# | | ???????????# ?## | | ???????????# #?# ;# ## & | | ???????????# #?##! ##### ! & | | ???????????# ####@& #???## ### &* | | ????????????# *R!##????###?## | | ????????????# R #??????????## ## | | ????????????# ### #???????????# ### | | ????????????# ## #?#####???????????###?# #### | | ????????????#???## #?????????????????????## #??? | | ?????????????????## ??????????????????????###??? | | ??????????????????##""???????????????????????????? | | ???????????????????## ???????????????????????????? | | ????????????????????? ???????????????????????????? | | ????????????????????? ???????????????????????????? | | ?????????????????????"???????????????????????????? | | ?????????????????????"???????????????????????????? | | ?????????????????????????????????????????????????? | | ?????????????????????????????????????????????????? | | ?????????????????????????????????????????????????? | | ?????????????????????????????????????????????????? | | ?????????????????????????????????????????????????? | | ?????????????????????????????????????????????????? | | ?????????????????????????????????????????????????? | | ?????????????????????????????????????????????????? | | ?????????????????????????????????????????????????? | | ?????????????????????????????????????????????????? | | ?????????????????????????????????????????????????? | | ?????????????????????????????????????????????????? | +----------------------------------------------------+ Best States ------------- Heat Dissipation 25 Energy Generation 10 Energy Capacity 125 Matter Stores 300 Matter Capacity 300 Sight Range 16 Terrain Scan Range 14 Terrain Scan Density 10 Evasion (%) 55 Targeting Accuracy 5 Recoil Reduction 2 Item Schematics ----------------- None Robot Schematics ------------------ None Fabricated ------------ Nothing Alien Tech Used ----------------- None Achievements -------------- None Challenges ------------ None Game ------ Seed SurveybotXenonNetwork Manual? 0 Play Time 00:19:21 Cumulative 171.3 hours Start 2024.03.04 @ 04:35:37 End 2024.03.04 @ 05:02:29 Sessions 1 Manual Loads 0 Difficulty Rogue Special Mode None Game No. 128 Rogue 118 Adventurer 0 Explorer 10 Win Type - Total 3 Types 3/0/0/0/0/0/0/0/0 Lore% 57 Gallery% 67 Achievement% 51 Wizard Run 0 Options --------- Layout 1 ASCII 0 Keyboard 0 Movement Mouse Keybinds 1 Fullscreen 1 Font 24/Smallcaps Map View 50x35 Zoom Use 0% Tactical HUD 1 Map Filters NONE Filters NONE Steam 1 RUN: b6eb0925-44ee-45eb-a0ec-4612b9ffb417